[Event "Titled Tuesday Blitz April 12 Early 2022"]
[White "Gunina, Valentina"]
[Black "Matlakov, Maxim"]
[WhiteFideId "4167570"]
[BlackFideId "4168003"]
[WhiteElo "2381"]
[BlackElo "2669"]
[Result "0-1"]
[Round "04"]
[TimeControl "180+1"]
[Date "2022.04.12"]
[WhiteClock "0:00:17"]
[BlackClock "0:00:42"]

1. d4 {[%clk 0:03:00]}  Nf6 {[%clk 0:02:59]} 2. c4 {[%clk 0:03:01]}  e6 {[%clk 0:02:59]} 3. Nf3 {[%clk 0:03:00]}  d5 {[%clk 0:02:59]} 4. Nc3 {[%clk 0:03:01]}  c5 {[%clk 0:02:57]} 5. cxd5 {[%clk 0:03:00]}  Nxd5 {[%clk 0:02:57]} 6. e4 {[%clk 0:03:01]}  Nxc3 {[%clk 0:02:57]} 7. bxc3 {[%clk 0:03:01]}  cxd4 {[%clk 0:02:58]} 8. cxd4 {[%clk 0:03:02]}  Bb4+ {[%clk 0:02:59]} 9. Bd2 {[%clk 0:03:02]}  Bxd2+ {[%clk 0:02:59]} 10. Qxd2 {[%clk 0:03:03]}  O-O {[%clk 0:02:59]} 11. Bc4 {[%clk 0:03:00]}  Nd7 {[%clk 0:02:59]} 12. O-O {[%clk 0:03:00]}  b6 {[%clk 0:03:00]} 13. Rfe1 {[%clk 0:03:01]}  Bb7 {[%clk 0:02:59]} 14. Rad1 {[%clk 0:03:01]}  Rc8 {[%clk 0:02:59]} 15. Bb3 {[%clk 0:03:01]}  h6 {[%clk 0:02:59]} 16. h3 {[%clk 0:03:01]}  Nf6 {[%clk 0:02:54]} 17. Qf4 {[%clk 0:03:01]}  Qc7 {[%clk 0:02:52]} 18. Ne5 {[%clk 0:02:54]}  Nd7 {[%clk 0:02:46]} 19. Qg3 {[%clk 0:02:40]}  Nxe5 {[%clk 0:02:42]} 20. dxe5 {[%clk 0:02:40]}  b5 {[%clk 0:02:40]} 21. f4 {[%clk 0:02:38]}  a5 {[%clk 0:02:39]} 22. f5 {[%clk 0:02:14]}  a4 {[%clk 0:02:17]} 23. f6 {[%clk 0:02:14]}  g6 {[%clk 0:02:10]} 24. Bxe6 {[%clk 0:02:06]}  Qb6+ {[%clk 0:02:07]} 25. Kh2 {[%clk 0:02:06]}  Qxe6 {[%clk 0:02:07]} 26. Rd6 {[%clk 0:02:06]}  Qe8 {[%clk 0:01:44]} 27. e6 {[%clk 0:01:17]}  fxe6 {[%clk 0:01:43]} 28. Qe5 {[%clk 0:01:16]}  Qf7 {[%clk 0:01:38]} 29. Rf1 {[%clk 0:01:15]}  Rc6 {[%clk 0:01:27]} 30. Qd4 {[%clk 0:00:55]}  Rxd6 {[%clk 0:01:24]} 31. Qxd6 {[%clk 0:00:55]}  Bxe4 {[%clk 0:01:24]} 32. Qf4 {[%clk 0:00:48]}  Bf5 {[%clk 0:01:09]} 33. Qe5 {[%clk 0:00:41]}  b4 {[%clk 0:01:03]} 34. Rf4 {[%clk 0:00:32]}  b3 {[%clk 0:00:57]} 35. Rxa4 {[%clk 0:00:30]}  bxa2 {[%clk 0:00:57]} 36. Rxa2 {[%clk 0:00:30]}  Qxf6 {[%clk 0:00:57]} 37. Qe3 {[%clk 0:00:30]}  Qg5 {[%clk 0:00:57]} 38. Qe5 {[%clk 0:00:28]}  Qf6 {[%clk 0:00:54]} 39. Qe3 {[%clk 0:00:29]}  Kg7 {[%clk 0:00:54]} 40. Rf2 {[%clk 0:00:27]}  h5 {[%clk 0:00:52]} 41. Rd2 {[%clk 0:00:24]}  Rd8 {[%clk 0:00:50]} 42. Ra2 {[%clk 0:00:23]}  Rd7 {[%clk 0:00:50]} 43. Ra8 {[%clk 0:00:20]}  Qd4 {[%clk 0:00:48]} 44. Qg3 {[%clk 0:00:17]}  Qd6 {[%clk 0:00:42]} 0-1


[Site "https://www.chess.com"]

[Event "Titled Tuesday Blitz April 12 Early 2022"]
[White "Harshavardhan G B"]
[Black "Shtyka, Sergey"]
[WhiteFideId "25059009"]
[BlackFideId "4138465"]
[WhiteElo "1831"]
[BlackElo "2014"]
[Result "1-0"]
[Round "04"]
[TimeControl "180+1"]
[Date "2022.04.13"]
[WhiteClock "0:00:14"]
[BlackClock "0:00:13"]

1. d4 {[%clk 0:03:00]}  c5 {[%clk 0:02:59]} 2. d5 {[%clk 0:03:00]}  e5 {[%clk 0:02:59]} 3. e4 {[%clk 0:02:59]}  d6 {[%clk 0:02:59]} 4. f4 {[%clk 0:02:58]}  exf4 {[%clk 0:02:59]} 5. Bxf4 {[%clk 0:02:59]}  Be7 {[%clk 0:02:58]} 6. Nc3 {[%clk 0:02:58]}  a6 {[%clk 0:02:59]} 7. a4 {[%clk 0:02:57]}  Bf6 {[%clk 0:02:59]} 8. Nf3 {[%clk 0:02:55]}  Ne7 {[%clk 0:02:59]} 9. Bd3 {[%clk 0:02:55]}  Ng6 {[%clk 0:02:59]} 10. Bg3 {[%clk 0:02:55]}  Qe7 {[%clk 0:02:59]} 11. O-O {[%clk 0:02:52]}  Nd7 {[%clk 0:02:59]} 12. a5 {[%clk 0:02:49]}  Nde5 {[%clk 0:02:58]} 13. Na4 {[%clk 0:02:50]}  O-O {[%clk 0:02:45]} 14. Nb6 {[%clk 0:02:46]}  Rb8 {[%clk 0:02:44]} 15. c3 {[%clk 0:02:45]}  Re8 {[%clk 0:02:35]} 16. Bc2 {[%clk 0:02:42]}  Bg4 {[%clk 0:02:32]} 17. Qd2 {[%clk 0:02:39]}  h6 {[%clk 0:02:03]} 18. Rf2 {[%clk 0:02:31]}  Nd7 {[%clk 0:01:51]} 19. Nc4 {[%clk 0:02:28]}  Nde5 {[%clk 0:01:50]} 20. Nb6 {[%clk 0:02:26]}  Nd7 {[%clk 0:01:50]} 21. h3 {[%clk 0:01:51]}  Nxb6 {[%clk 0:01:45]} 22. hxg4 {[%clk 0:01:44]}  Nc4 {[%clk 0:01:41]} 23. Qc1 {[%clk 0:01:41]}  Nce5 {[%clk 0:01:39]} 24. Nxe5 {[%clk 0:01:40]}  Bxe5 {[%clk 0:01:35]} 25. Qe3 {[%clk 0:01:38]}  Bxg3 {[%clk 0:01:32]} 26. Qxg3 {[%clk 0:01:39]}  Qe5 {[%clk 0:01:32]} 27. Qf3 {[%clk 0:01:36]}  Re7 {[%clk 0:01:29]} 28. Raf1 {[%clk 0:01:32]}  Rbe8 {[%clk 0:01:11]} 29. g3 {[%clk 0:01:31]}  Qg5 {[%clk 0:01:09]} 30. Kg2 {[%clk 0:01:29]}  Ne5 {[%clk 0:01:08]} 31. Qf5 {[%clk 0:01:23]}  Qxg4 {[%clk 0:01:05]} 32. Qxg4 {[%clk 0:01:15]}  Nxg4 {[%clk 0:01:04]} 33. Re2 {[%clk 0:01:16]}  Ne5 {[%clk 0:01:00]} 34. Ba4 {[%clk 0:01:14]}  Rd8 {[%clk 0:01:00]} 35. b3 {[%clk 0:01:14]}  g6 {[%clk 0:00:59]} 36. Rb1 {[%clk 0:01:12]}  Kg7 {[%clk 0:00:58]} 37. b4 {[%clk 0:01:12]}  cxb4 {[%clk 0:00:59]} 38. Rxb4 {[%clk 0:01:11]}  Rc8 {[%clk 0:00:58]} 39. Rc2 {[%clk 0:01:11]}  Nd3 {[%clk 0:00:56]} 40. Rb1 {[%clk 0:01:09]}  Rxe4 {[%clk 0:00:55]} 41. Ra2 {[%clk 0:01:04]}  Nc5 {[%clk 0:00:43]} 42. Bd1 {[%clk 0:01:04]}  Rce8 {[%clk 0:00:38]} 43. Kf2 {[%clk 0:01:02]}  R4e5 {[%clk 0:00:38]} 44. Bf3 {[%clk 0:01:02]}  R8e7 {[%clk 0:00:38]} 45. Rc2 {[%clk 0:00:53]}  h5 {[%clk 0:00:38]} 46. Rd1 {[%clk 0:00:52]}  Re3 {[%clk 0:00:37]} 47. Be2 {[%clk 0:00:44]}  R3e5 {[%clk 0:00:37]} 48. Bf3 {[%clk 0:00:43]}  Rc7 {[%clk 0:00:35]} 49. Rd4 {[%clk 0:00:39]}  f5 {[%clk 0:00:34]} 50. Rb2 {[%clk 0:00:35]}  Kf6 {[%clk 0:00:34]} 51. Rb1 {[%clk 0:00:26]}  Rce7 {[%clk 0:00:32]} 52. Rb2 {[%clk 0:00:21]}  Rc7 {[%clk 0:00:32]} 53. Rb1 {[%clk 0:00:21]}  Rh7 {[%clk 0:00:32]} 54. Rb2 {[%clk 0:00:20]}  g5 {[%clk 0:00:32]} 55. Rb6 {[%clk 0:00:20]}  g4 {[%clk 0:00:26]} 56. Bg2 {[%clk 0:00:14]}  Ke7 {[%clk 0:00:26]} 57. Rdb4 {[%clk 0:00:13]}  h4 {[%clk 0:00:25]} 58. Rxb7+ {[%clk 0:00:13]}  Nxb7 {[%clk 0:00:23]} 59. Rxb7+ {[%clk 0:00:13]}  Kf6 {[%clk 0:00:23]} 60. Rxh7 {[%clk 0:00:14]}  hxg3+ {[%clk 0:00:23]} 61. Kxg3 {[%clk 0:00:15]}  Re3+ {[%clk 0:00:24]} 62. Kf4 {[%clk 0:00:15]}  Rxc3 {[%clk 0:00:23]} 63. Rh6+ {[%clk 0:00:16]}  Ke7 {[%clk 0:00:24]} 64. Kxf5 {[%clk 0:00:16]}  g3 {[%clk 0:00:23]} 65. Re6+ {[%clk 0:00:16]}  Kd7 {[%clk 0:00:23]} 66. Rg6 {[%clk 0:00:16]}  Re3 {[%clk 0:00:21]} 67. Rg7+ {[%clk 0:00:16]}  Kd8 {[%clk 0:00:21]} 68. Be4 {[%clk 0:00:16]}  Re1 {[%clk 0:00:19]} 69. Rxg3 {[%clk 0:00:16]}  Rf1+ {[%clk 0:00:19]} 70. Ke6 {[%clk 0:00:15]}  Rf8 {[%clk 0:00:18]} 71. Kxd6 {[%clk 0:00:15]}  Kc8 {[%clk 0:00:19]} 72. Kc6 {[%clk 0:00:15]}  Kb8 {[%clk 0:00:19]} 73. d6 {[%clk 0:00:15]}  Ka7 {[%clk 0:00:19]} 74. Rg7+ {[%clk 0:00:14]}  Kb8 {[%clk 0:00:18]} 75. Rb7+ {[%clk 0:00:14]}  Ka8 {[%clk 0:00:17]} 76. Kb6 {[%clk 0:00:14]}  Rb8 {[%clk 0:00:13]} 77. Rxb8+ {[%clk 0:00:14]}  Kxb8 {[%clk 0:00:13]} 78. Kxa6 {[%clk 0:00:13]}  Kc8 {[%clk 0:00:13]} 79. Kb6 {[%clk 0:00:14]} 1-0


[Site "https://www.chess.com"]

[Event "Titled Tuesday Blitz April 12 Early 2022"]
[White "Hernandez Jimenez, Alexander Andres"]
[Black "Ljukin, Sergei"]
[WhiteFideId "3900452"]
[BlackFideId "14102200"]
[WhiteElo "2098"]
[BlackElo "2312"]
[Result "1-0"]
[Round "04"]
[TimeControl "180+1"]
[Date "2022.04.13"]
[WhiteClock "0:00:01"]
[BlackClock "0:00:03"]

1. e4 {[%clk 0:02:40]}  e6 {[%clk 0:02:59]} 2. d4 {[%clk 0:02:40]}  d5 {[%clk 0:03:00]} 3. Nc3 {[%clk 0:02:38]}  Bb4 {[%clk 0:02:59]} 4. exd5 {[%clk 0:02:38]}  exd5 {[%clk 0:02:59]} 5. Nf3 {[%clk 0:02:38]}  Nf6 {[%clk 0:02:59]} 6. Bg5 {[%clk 0:02:36]}  O-O {[%clk 0:02:57]} 7. Be2 {[%clk 0:02:35]}  Bf5 {[%clk 0:02:57]} 8. O-O {[%clk 0:02:35]}  c6 {[%clk 0:02:57]} 9. Ne5 {[%clk 0:02:25]}  Qd6 {[%clk 0:02:42]} 10. Bxf6 {[%clk 0:02:15]}  Qxf6 {[%clk 0:02:41]} 11. f4 {[%clk 0:02:12]}  Qd6 {[%clk 0:02:36]} 12. Bd3 {[%clk 0:02:04]}  Bxd3 {[%clk 0:02:29]} 13. Qxd3 {[%clk 0:02:05]}  f6 {[%clk 0:02:28]} 14. Ng4 {[%clk 0:01:59]}  Nd7 {[%clk 0:02:27]} 15. Ne2 {[%clk 0:01:57]}  Rae8 {[%clk 0:02:23]} 16. c3 {[%clk 0:01:57]}  Ba5 {[%clk 0:02:22]} 17. Ng3 {[%clk 0:01:53]}  Qe6 {[%clk 0:01:51]} 18. f5 {[%clk 0:01:38]}  Qd6 {[%clk 0:01:42]} 19. Rae1 {[%clk 0:01:34]}  Bc7 {[%clk 0:01:42]} 20. Qf3 {[%clk 0:01:23]}  c5 {[%clk 0:01:34]} 21. dxc5 {[%clk 0:01:03]}  Nxc5 {[%clk 0:01:32]} 22. Ne3 {[%clk 0:00:54]}  Ne4 {[%clk 0:01:29]} 23. Nxd5 {[%clk 0:00:43]}  Nd2 {[%clk 0:00:40]} 24. Qd3 {[%clk 0:00:42]}  Nxf1 {[%clk 0:00:39]} 25. Rxf1 {[%clk 0:00:33]}  Qc5+ {[%clk 0:00:19]} 26. Kh1 {[%clk 0:00:31]}  Bxg3 {[%clk 0:00:19]} 27. hxg3 {[%clk 0:00:30]}  Re5 {[%clk 0:00:19]} 28. c4 {[%clk 0:00:29]}  b5 {[%clk 0:00:17]} 29. b3 {[%clk 0:00:27]}  bxc4 {[%clk 0:00:17]} 30. bxc4 {[%clk 0:00:27]}  Rc8 {[%clk 0:00:17]} 31. Nf4 {[%clk 0:00:09]}  Rxf5 {[%clk 0:00:10]} 32. Qd7 {[%clk 0:00:05]}  Re5 {[%clk 0:00:10]} 33. Rb1 {[%clk 0:00:04]}  Qc7 {[%clk 0:00:07]} 34. Qd4 {[%clk 0:00:02]}  Rce8 {[%clk 0:00:07]} 35. Rb5 {[%clk 0:00:01]}  Rxb5 {[%clk 0:00:06]} 36. cxb5 {[%clk 0:00:01]}  Qb6 {[%clk 0:00:06]} 37. Qc4+ {[%clk 0:00:01]}  Kh8 {[%clk 0:00:05]} 38. Kh2 {[%clk 0:00:01]}  Qd8 {[%clk 0:00:03]} 39. Qf7 {[%clk 0:00:01]}  Qe7 {[%clk 0:00:03]} 40. Qh5 {[%clk 0:00:01]} 1-0


[Site "https://www.chess.com"]

[Event "Titled Tuesday Blitz April 12 Early 2022"]
[White "Horcajuelo Rocamora, Martin"]
[Black "Blokhin, Sofia"]
[WhiteFideId "24573027"]
[BlackFideId "4508190"]
[WhiteElo "1822"]
[BlackElo "1764"]
[Result "0-1"]
[Round "04"]
[TimeControl "180+1"]
[Date "2022.04.13"]
[WhiteClock "0:01:55"]
[BlackClock "0:00:36"]

1. e4 {[%clk 0:03:00]}  c5 {[%clk 0:02:58]} 2. Nf3 {[%clk 0:03:01]}  Nc6 {[%clk 0:02:56]} 3. d4 {[%clk 0:03:01]}  cxd4 {[%clk 0:02:56]} 4. Nxd4 {[%clk 0:03:01]}  e5 {[%clk 0:02:54]} 5. Nb5 {[%clk 0:03:00]}  d6 {[%clk 0:02:52]} 6. N1c3 {[%clk 0:02:59]}  a6 {[%clk 0:02:50]} 7. Na3 {[%clk 0:03:00]}  b5 {[%clk 0:02:49]} 8. Nd5 {[%clk 0:03:00]}  Nf6 {[%clk 0:02:45]} 9. Bg5 {[%clk 0:02:59]}  Be7 {[%clk 0:02:40]} 10. Bxf6 {[%clk 0:03:00]}  Bxf6 {[%clk 0:02:36]} 11. c3 {[%clk 0:03:00]}  O-O {[%clk 0:02:33]} 12. Nc2 {[%clk 0:03:00]}  Be7 {[%clk 0:02:30]} 13. a4 {[%clk 0:02:56]}  bxa4 {[%clk 0:02:26]} 14. Rxa4 {[%clk 0:02:56]}  f5 {[%clk 0:02:26]} 15. Bc4 {[%clk 0:02:53]}  Kh8 {[%clk 0:02:23]} 16. O-O {[%clk 0:02:48]}  fxe4 {[%clk 0:02:22]} 17. Nxe7 {[%clk 0:02:41]}  Nxe7 {[%clk 0:02:00]} 18. Ne3 {[%clk 0:02:41]}  Bb7 {[%clk 0:01:56]} 19. Nd5 {[%clk 0:02:40]}  Rc8 {[%clk 0:01:43]} 20. Nxe7 {[%clk 0:02:27]}  Qxe7 {[%clk 0:01:42]} 21. Bxa6 {[%clk 0:02:28]}  Bxa6 {[%clk 0:01:33]} 22. Rxa6 {[%clk 0:02:28]}  Rcd8 {[%clk 0:01:27]} 23. Qd5 {[%clk 0:02:27]}  e3 {[%clk 0:01:18]} 24. fxe3 {[%clk 0:02:25]}  Rxf1+ {[%clk 0:01:18]} 25. Kxf1 {[%clk 0:02:26]}  Rf8+ {[%clk 0:01:18]} 26. Kg1 {[%clk 0:02:24]}  Qf6 {[%clk 0:01:10]} 27. Qf3 {[%clk 0:02:23]}  Qe7 {[%clk 0:01:06]} 28. Qe2 {[%clk 0:02:20]}  d5 {[%clk 0:01:01]} 29. Ra5 {[%clk 0:02:16]}  Qf7 {[%clk 0:00:55]} 30. e4 {[%clk 0:02:14]}  dxe4 {[%clk 0:00:50]} 31. Rxe5 {[%clk 0:02:14]}  Qa7+ {[%clk 0:00:38]} 32. Kh1 {[%clk 0:01:55]}  Qa1+ {[%clk 0:00:36]} 0-1


[Site "https://www.chess.com"]

[Event "Titled Tuesday Blitz April 12 Early 2022"]
[White "Hua, Lefong"]
[Black "Tari, Aryan"]
[WhiteFideId "2602253"]
[BlackFideId "1510045"]
[WhiteElo "2595"]
[BlackElo "2567"]
[Result "0-1"]
[Round "04"]
[TimeControl "180+1"]
[Date "2022.04.12"]
[WhiteClock "0:00:31"]
[BlackClock "0:01:09"]

1. d4 {[%clk 0:03:00]}  d5 {[%clk 0:02:53]} 2. c4 {[%clk 0:03:01]}  e6 {[%clk 0:02:47]} 3. Nc3 {[%clk 0:03:01]}  c5 {[%clk 0:02:48]} 4. cxd5 {[%clk 0:02:59]}  cxd4 {[%clk 0:02:48]} 5. Qa4+ {[%clk 0:02:59]}  Bd7 {[%clk 0:02:48]} 6. Qxd4 {[%clk 0:02:58]}  exd5 {[%clk 0:02:48]} 7. Qxd5 {[%clk 0:02:57]}  Nf6 {[%clk 0:02:47]} 8. Qd1 {[%clk 0:02:57]}  Bc5 {[%clk 0:02:46]} 9. e3 {[%clk 0:02:55]}  O-O {[%clk 0:02:46]} 10. Nf3 {[%clk 0:02:56]}  Qe7 {[%clk 0:02:47]} 11. Be2 {[%clk 0:02:51]}  Nc6 {[%clk 0:02:47]} 12. O-O {[%clk 0:02:51]}  Rfd8 {[%clk 0:02:41]} 13. a3 {[%clk 0:02:46]}  Ne5 {[%clk 0:02:40]} 14. b4 {[%clk 0:02:28]}  Nxf3+ {[%clk 0:02:13]} 15. Bxf3 {[%clk 0:02:26]}  Bb5 {[%clk 0:02:13]} 16. Qb3 {[%clk 0:01:59]}  Bxf1 {[%clk 0:02:12]} 17. Kxf1 {[%clk 0:01:53]}  Bd6 {[%clk 0:02:08]} 18. Bb2 {[%clk 0:01:47]}  Be5 {[%clk 0:02:04]} 19. g3 {[%clk 0:01:44]}  h5 {[%clk 0:01:53]} 20. Rd1 {[%clk 0:01:31]}  Rxd1+ {[%clk 0:01:52]} 21. Nxd1 {[%clk 0:01:30]}  Bxb2 {[%clk 0:01:51]} 22. Nxb2 {[%clk 0:01:30]}  Ne4 {[%clk 0:01:47]} 23. Qd5 {[%clk 0:01:23]}  Re8 {[%clk 0:01:40]} 24. Kg2 {[%clk 0:01:16]}  h4 {[%clk 0:01:38]} 25. Nd3 {[%clk 0:00:58]}  b6 {[%clk 0:01:37]} 26. Nf4 {[%clk 0:00:56]}  Ng5 {[%clk 0:01:26]} 27. Bh5 {[%clk 0:00:45]}  hxg3 {[%clk 0:01:23]} 28. hxg3 {[%clk 0:00:45]}  Qe4+ {[%clk 0:01:23]} 29. Qxe4 {[%clk 0:00:43]}  Nxe4 {[%clk 0:01:24]} 30. Nd5 {[%clk 0:00:36]}  Re5 {[%clk 0:01:23]} 31. Nf4 {[%clk 0:00:36]}  Nd6 {[%clk 0:01:17]} 32. Be2 {[%clk 0:00:34]}  Nb5 {[%clk 0:01:10]} 33. Nd3 {[%clk 0:00:31]}  Re7 {[%clk 0:01:09]} 0-1


[Site "https://www.chess.com"]

[Event "Titled Tuesday Blitz April 12 Early 2022"]
[White "Iljin, Timofey"]
[Black "Papadiamandis, Elliot"]
[WhiteFideId "14110180"]
[BlackFideId "36074160"]
[WhiteElo "2396"]
[BlackElo "2088"]
[Result "1/2-1/2"]
[Round "04"]
[TimeControl "180+1"]
[Date "2022.04.13"]
[WhiteClock "0:00:23"]
[BlackClock "0:00:38"]

1. d4 {[%clk 0:03:00]}  Nf6 {[%clk 0:02:53]} 2. c4 {[%clk 0:03:01]}  e6 {[%clk 0:02:52]} 3. Nc3 {[%clk 0:03:02]}  d5 {[%clk 0:02:47]} 4. cxd5 {[%clk 0:03:02]}  exd5 {[%clk 0:02:48]} 5. Bg5 {[%clk 0:03:03]}  Be7 {[%clk 0:02:49]} 6. e3 {[%clk 0:03:03]}  O-O {[%clk 0:02:49]} 7. Bd3 {[%clk 0:03:03]}  c6 {[%clk 0:02:49]} 8. Qc2 {[%clk 0:03:04]}  h6 {[%clk 0:02:48]} 9. Bh4 {[%clk 0:03:04]}  Re8 {[%clk 0:02:48]} 10. Nge2 {[%clk 0:03:04]}  Nbd7 {[%clk 0:02:49]} 11. f3 {[%clk 0:03:04]}  Nf8 {[%clk 0:02:49]} 12. O-O {[%clk 0:03:04]}  Nh5 {[%clk 0:02:36]} 13. Bf2 {[%clk 0:03:03]}  Bg5 {[%clk 0:02:36]} 14. e4 {[%clk 0:03:00]}  Nf4 {[%clk 0:02:33]} 15. Nxf4 {[%clk 0:02:52]}  Bxf4 {[%clk 0:02:34]} 16. Ne2 {[%clk 0:02:53]}  Bc7 {[%clk 0:02:31]} 17. e5 {[%clk 0:02:52]}  f6 {[%clk 0:02:27]} 18. f4 {[%clk 0:02:50]}  fxe5 {[%clk 0:02:26]} 19. fxe5 {[%clk 0:02:51]}  Ne6 {[%clk 0:02:27]} 20. Be3 {[%clk 0:02:40]}  Qe7 {[%clk 0:02:19]} 21. Ng3 {[%clk 0:02:39]}  Nf8 {[%clk 0:02:16]} 22. Nf5 {[%clk 0:02:29]}  Bxf5 {[%clk 0:02:17]} 23. Rxf5 {[%clk 0:02:29]}  Ne6 {[%clk 0:02:16]} 24. Raf1 {[%clk 0:02:30]}  Rf8 {[%clk 0:02:17]} 25. Qf2 {[%clk 0:02:26]}  Bb6 {[%clk 0:02:03]} 26. Bb1 {[%clk 0:02:14]}  c5 {[%clk 0:01:59]} 27. Qc2 {[%clk 0:02:12]}  cxd4 {[%clk 0:01:55]} 28. Rxf8+ {[%clk 0:01:26]}  Nxf8 {[%clk 0:01:55]} 29. Bf2 {[%clk 0:01:07]}  Qxe5 {[%clk 0:01:47]} 30. Kh1 {[%clk 0:00:59]}  Re8 {[%clk 0:01:37]} 31. Bg3 {[%clk 0:00:53]}  Qe2 {[%clk 0:01:03]} 32. Rxf8+ {[%clk 0:00:24]}  Kxf8 {[%clk 0:01:04]} 33. Bd6+ {[%clk 0:00:25]}  Kg8 {[%clk 0:00:36]} 34. Qh7+ {[%clk 0:00:23]}  Kf7 {[%clk 0:00:37]} 35. Qg6+ {[%clk 0:00:21]}  Kg8 {[%clk 0:00:37]} 36. Qh7+ {[%clk 0:00:21]}  Kf7 {[%clk 0:00:38]} 37. Qg6+ {[%clk 0:00:22]}  Kg8 {[%clk 0:00:38]} 38. Qh7+ {[%clk 0:00:23]} 1/2-1/2


[Site "https://www.chess.com"]

[Event "Titled Tuesday Blitz April 12 Early 2022"]
[White "Indjic, Aleksandar"]
[Black "Pajeken, Jakob Leon"]
[WhiteFideId "911925"]
[BlackFideId "12942839"]
[WhiteElo "2616"]
[BlackElo "2351"]
[Result "0-1"]
[Round "04"]
[TimeControl "180+1"]
[Date "2022.04.12"]
[WhiteClock "0:00:11"]
[BlackClock "0:00:20"]

1. e4 {[%clk 0:03:00]}  e5 {[%clk 0:02:59]} 2. Nf3 {[%clk 0:03:00]}  Nc6 {[%clk 0:03:00]} 3. Bb5 {[%clk 0:02:59]}  a6 {[%clk 0:02:59]} 4. Ba4 {[%clk 0:02:59]}  Nf6 {[%clk 0:03:00]} 5. O-O {[%clk 0:02:57]}  Be7 {[%clk 0:03:00]} 6. Re1 {[%clk 0:02:51]}  b5 {[%clk 0:03:00]} 7. Bb3 {[%clk 0:02:50]}  d6 {[%clk 0:03:01]} 8. c3 {[%clk 0:02:48]}  O-O {[%clk 0:03:01]} 9. h3 {[%clk 0:02:48]}  Na5 {[%clk 0:03:01]} 10. Bc2 {[%clk 0:02:47]}  c5 {[%clk 0:03:02]} 11. d4 {[%clk 0:02:47]}  Qc7 {[%clk 0:03:02]} 12. d5 {[%clk 0:02:46]}  Nd7 {[%clk 0:03:02]} 13. b3 {[%clk 0:02:45]}  Nb6 {[%clk 0:03:02]} 14. Nbd2 {[%clk 0:02:41]}  c4 {[%clk 0:03:02]} 15. b4 {[%clk 0:02:35]}  Nb7 {[%clk 0:03:01]} 16. Nf1 {[%clk 0:02:36]}  a5 {[%clk 0:03:01]} 17. Ng3 {[%clk 0:02:28]}  axb4 {[%clk 0:02:58]} 18. cxb4 {[%clk 0:02:29]}  g6 {[%clk 0:02:43]} 19. Bh6 {[%clk 0:02:28]}  Re8 {[%clk 0:02:43]} 20. a3 {[%clk 0:02:28]}  f6 {[%clk 0:02:41]} 21. Ne2 {[%clk 0:02:18]}  Nd8 {[%clk 0:02:38]} 22. Be3 {[%clk 0:02:15]}  Nf7 {[%clk 0:02:36]} 23. Nc3 {[%clk 0:02:14]}  Bd7 {[%clk 0:02:35]} 24. Nd2 {[%clk 0:02:02]}  Bf8 {[%clk 0:02:34]} 25. Qf3 {[%clk 0:01:58]}  Bg7 {[%clk 0:02:21]} 26. Reb1 {[%clk 0:01:57]}  Ra6 {[%clk 0:02:07]} 27. a4 {[%clk 0:01:55]}  Rea8 {[%clk 0:01:58]} 28. a5 {[%clk 0:01:43]}  Nc8 {[%clk 0:01:58]} 29. Qe2 {[%clk 0:01:36]}  Ne7 {[%clk 0:01:55]} 30. f3 {[%clk 0:01:32]}  Qb7 {[%clk 0:01:51]} 31. Rf1 {[%clk 0:01:27]}  f5 {[%clk 0:01:42]} 32. Ndb1 {[%clk 0:00:48]}  f4 {[%clk 0:01:19]} 33. Bd2 {[%clk 0:00:47]}  g5 {[%clk 0:01:16]} 34. Kf2 {[%clk 0:00:46]}  Ng6 {[%clk 0:01:15]} 35. Ke1 {[%clk 0:00:46]}  Bf6 {[%clk 0:01:14]} 36. Na3 {[%clk 0:00:44]}  Bd8 {[%clk 0:01:05]} 37. Rb1 {[%clk 0:00:41]}  Bc7 {[%clk 0:01:03]} 38. Kd1 {[%clk 0:00:40]}  Bb8 {[%clk 0:01:03]} 39. Be1 {[%clk 0:00:30]}  Ba7 {[%clk 0:01:03]} 40. Bf2 {[%clk 0:00:29]}  Bd4 {[%clk 0:01:03]} 41. Qd2 {[%clk 0:00:29]}  Bxf2 {[%clk 0:00:57]} 42. Qxf2 {[%clk 0:00:30]}  Kf8 {[%clk 0:00:53]} 43. Kc1 {[%clk 0:00:28]}  Ke7 {[%clk 0:00:53]} 44. Ra1 {[%clk 0:00:18]}  h5 {[%clk 0:00:48]} 45. Bd1 {[%clk 0:00:18]}  Nh6 {[%clk 0:00:37]} 46. Kb2 {[%clk 0:00:18]}  h4 {[%clk 0:00:35]} 47. Rb1 {[%clk 0:00:15]}  Ng8 {[%clk 0:00:31]} 48. Re1 {[%clk 0:00:16]}  Nf6 {[%clk 0:00:31]} 49. Be2 {[%clk 0:00:15]}  Kf7 {[%clk 0:00:27]} 50. Bf1 {[%clk 0:00:15]}  Ne8 {[%clk 0:00:25]} 51. Kc2 {[%clk 0:00:15]}  Nc7 {[%clk 0:00:25]} 52. Rb2 {[%clk 0:00:16]}  Ne7 {[%clk 0:00:21]} 53. Reb1 {[%clk 0:00:16]}  Ng8 {[%clk 0:00:21]} 54. Be2 {[%clk 0:00:16]}  Nf6 {[%clk 0:00:21]} 55. Qf1 {[%clk 0:00:15]}  Nh5 {[%clk 0:00:21]} 56. Qf2 {[%clk 0:00:16]}  Ng3 {[%clk 0:00:21]} 57. Kd2 {[%clk 0:00:16]}  Be8 {[%clk 0:00:21]} 58. Ke1 {[%clk 0:00:16]}  Rc8 {[%clk 0:00:20]} 59. Nc2 {[%clk 0:00:16]}  Rb8 {[%clk 0:00:20]} 60. Ra2 {[%clk 0:00:16]}  Rba8 {[%clk 0:00:20]} 61. Na3 {[%clk 0:00:16]}  R8a7 {[%clk 0:00:20]} 62. Kd2 {[%clk 0:00:16]}  Ra8 {[%clk 0:00:20]} 63. Kd1 {[%clk 0:00:17]}  R8a7 {[%clk 0:00:20]} 64. Rba1 {[%clk 0:00:17]}  Ra8 {[%clk 0:00:18]} 65. Kc1 {[%clk 0:00:16]}  R8a7 {[%clk 0:00:17]} 66. Kc2 {[%clk 0:00:17]}  Ra8 {[%clk 0:00:18]} 67. Bd1 {[%clk 0:00:17]}  R8a7 {[%clk 0:00:18]} 68. Kb2 {[%clk 0:00:18]}  Ra8 {[%clk 0:00:18]} 69. Nc2 {[%clk 0:00:18]}  R8a7 {[%clk 0:00:19]} 70. Be2 {[%clk 0:00:18]}  Ra8 {[%clk 0:00:19]} 71. Kc1 {[%clk 0:00:18]}  R8a7 {[%clk 0:00:19]} 72. Na3 {[%clk 0:00:18]}  Ra8 {[%clk 0:00:19]} 73. Rb2 {[%clk 0:00:19]}  R8a7 {[%clk 0:00:19]} 74. Bxc4 {[%clk 0:00:18]}  bxc4 {[%clk 0:00:19]} 75. Nxc4 {[%clk 0:00:19]}  Nb5 {[%clk 0:00:19]} 76. Nxb5 {[%clk 0:00:16]}  Qxb5 {[%clk 0:00:19]} 77. Nb6 {[%clk 0:00:14]}  Rxb6 {[%clk 0:00:19]} 78. Qxb6 {[%clk 0:00:13]}  Qxb6 {[%clk 0:00:19]} 79. axb6 {[%clk 0:00:13]}  Rxa1+ {[%clk 0:00:20]} 80. Kd2 {[%clk 0:00:14]}  Ra6 {[%clk 0:00:20]} 81. Rc2 {[%clk 0:00:13]}  Rxb6 {[%clk 0:00:20]} 82. Rc7+ {[%clk 0:00:13]}  Kf6 {[%clk 0:00:21]} 83. Rc8 {[%clk 0:00:13]}  Bf7 {[%clk 0:00:21]} 84. Rd8 {[%clk 0:00:13]}  Ke7 {[%clk 0:00:20]} 85. Rc8 {[%clk 0:00:13]}  Rxb4 {[%clk 0:00:20]} 86. Rc7+ {[%clk 0:00:14]}  Kf6 {[%clk 0:00:20]} 87. Kc3 {[%clk 0:00:14]}  Rb6 {[%clk 0:00:20]} 88. Rd7 {[%clk 0:00:14]}  Ne2+ {[%clk 0:00:19]} 89. Kd2 {[%clk 0:00:15]}  Nd4 {[%clk 0:00:20]} 90. Kc3 {[%clk 0:00:14]}  Be8 {[%clk 0:00:20]} 91. Rh7 {[%clk 0:00:14]}  Bg6 {[%clk 0:00:19]} 92. Rd7 {[%clk 0:00:12]}  Ra6 {[%clk 0:00:20]} 93. Kd3 {[%clk 0:00:11]}  Be8 {[%clk 0:00:19]} 94. Rd8 {[%clk 0:00:11]}  Ra3+ {[%clk 0:00:19]} 95. Kc4 {[%clk 0:00:10]}  Bb5+ {[%clk 0:00:19]} 96. Kb4 {[%clk 0:00:11]}  Ra6 {[%clk 0:00:20]} 97. Rb8 {[%clk 0:00:09]}  Bf1 {[%clk 0:00:19]} 98. Rf8+ {[%clk 0:00:09]}  Ke7 {[%clk 0:00:19]} 99. Rg8 {[%clk 0:00:09]}  Bxg2 {[%clk 0:00:19]} 100. Rxg5 {[%clk 0:00:10]}  Bxf3 {[%clk 0:00:20]} 101. Rg7+ {[%clk 0:00:11]}  Kf6 {[%clk 0:00:20]} 0-1


[Site "https://www.chess.com"]